fUST/lending_fUST_20260226
["ID","MTS","AMOUNT","RATE_DAILY","PERIOD"]
[406711076,1772113394864,-1000.0,0.00041226,30]
[406711077,1772113394909,-1000.0,0.00041226,30]
[406711078,1772113394952,-1000.0,0.00041226,30]
[406711079,1772113394996,-1000.0,0.00041226,30]
[406711080,1772113395039,-1000.0,0.00041226,30]
[406711081,1772113395083,-1000.0,0.00041226,30]
[406711082,1772113395127,-1000.0,0.00041226,30]
[406711083,1772113395171,-1000.0,0.00041226,30]
[406711084,1772113395216,-1000.0,0.00041226,30]
[406711085,1772113395265,-1000.0,0.00041226,30]
[406711086,1772113395310,-1000.0,0.00041226,30]
[406711087,1772113395359,-1000.0,0.00041226,30]
[406711088,1772113395412,-1000.0,0.00041226,30]
[406711089,1772113395456,-1000.0,0.00041226,30]
[406711090,1772113395501,-1000.0,0.00041226,30]
[406711091,1772113395549,-1000.0,0.00041226,30]
[406711092,1772113395601,-1000.0,0.00041226,30]
[406711093,1772113395673,-1000.0,0.00041226,30]
[406711094,1772113395724,-1000.0,0.00041226,30]
[406711095,1772113395775,-1000.0,0.00041226,30]
[406711096,1772113395823,-1000.0,0.00041226,30]
[406711097,1772113395874,-1000.0,0.00041226,30]
[406711098,1772113395925,-1000.0,0.00041226,30]
[406711099,1772113395974,-1000.0,0.00041226,30]
[406711100,1772113396023,-1000.0,0.00041226,30]
[406711101,1772113396071,-1000.0,0.00041226,30]
[406711102,1772113396120,-1000.0,0.00041226,30]
[406711103,1772113396169,-1000.0,0.00041226,30]
[406711104,1772113396219,-1000.0,0.00041226,30]
[406711105,1772113396269,-1000.0,0.00041226,30]
[406711106,1772113396320,-1000.0,0.00041226,30]
[406711107,1772113396368,-1000.0,0.00041226,30]
[406711108,1772113396413,-1000.0,0.00041226,30]
[406711109,1772113396462,-1000.0,0.00041226,30]
[406711110,1772113396512,-1000.0,0.00041226,30]
[406711111,1772113396560,-1000.0,0.00041226,30]
[406711112,1772113396606,-1000.0,0.00041226,30]
[406711113,1772113396652,-1000.0,0.00041226,30]
[406711114,1772113396702,-927.0,0.00041226,30]
[406711115,1772113396745,-1121.0,0.00041226,30]
[406711116,1772113396789,-843.0,0.00041226,120]
[406711117,1772113396834,-324.071766,0.00041228,30]
[406711118,1772113396878,-195.7958216,0.00041228,30]
[406711119,1772113396922,-607.3302322,0.00041228,30]
[406711120,1772113396965,-186.4444958,0.00041228,30]
[406711121,1772113397009,-607.5272289,0.00041228,30]
[406711122,1772113397056,-324.1791661,0.00041228,30]
[406711123,1772113397099,-150.0,0.00041228,30]
[406711124,1772113397143,-195.907803,0.00041228,30]
[406711125,1772113397188,-150.0,0.00041228,30]
[406711126,1772113397234,-313.4494431,0.00041228,30]
[406711127,1772113397281,-151.27309036,0.00041228,60]
[406711128,1772113397329,-200.0,0.00041247,120]
[406711129,1772113397379,-200.0,0.00041266,120]
[406711130,1772113397426,-490.61,0.00041272,120]
[406711131,1772113397473,-490.61,0.00041272,120]
[406711132,1772113397529,-490.61,0.00041272,120]
[406711133,1772113397576,-490.61,0.00041272,120]
[406711134,1772113397622,-490.61,0.00041272,120]
[406711135,1772113397668,-490.61,0.00041272,120]
[406711136,1772113397713,-490.61,0.00041272,120]
[406711137,1772113397757,-490.61,0.00041272,120]
[406711138,1772113397802,-490.61,0.00041272,120]
[406711139,1772113398060,-490.61,0.00041272,120]
[406711140,1772113398138,-490.61,0.00041272,120]
[406711141,1772113398182,-490.61,0.00041272,120]
[406711142,1772113398226,-490.61,0.00041272,120]
[406711143,1772113398271,-490.63,0.00041272,120]
[406711144,1772113398316,-360.73,0.00041272,30]
[406711145,1772113398359,-607.5272289,0.00041272,30]
[406711146,1772113398407,-186.4444958,0.00041272,30]
[406711147,1772113398448,-607.3302322,0.00041272,30]
[406711148,1772113398490,-186.3202341,0.00041276,30]
[406711149,1772113398534,-186.4444958,0.00041276,30]
[406711150,1772113398579,-157.31966658,0.00041295,60]
[406711151,1772113398626,-559.16,0.0004131,120]
[406711152,1772113398670,-307.8250258,0.00041395,30]
[406711153,1772113398715,-307.6998004,0.00041395,30]
[406711154,1772113398760,-307.8250258,0.00041395,30]
[406711155,1772113398806,-559.16,0.0004141,120]
[406711156,1772113398854,-607.1332355,0.00041427,30]
[406711157,1772113398901,-843.0,0.000415,120]
[406711158,1772113398950,-1000.0,0.000415,30]
[406711159,1772113398996,-2299.34,0.000415,120]
[406711160,1772113399040,-10000.0,0.000415,120]
[406711161,1772113399083,-2894.06,0.000415,120]
[406711162,1772113399130,-559.16,0.0004151,120]
[406711163,1772113399174,-151.27309036,0.00041572,60]
[406711164,1772113399221,-3256.88,0.0004158,90]
[406711165,1772113399264,-151.27309036,0.0004158,60]
[406711166,1772113399308,-407.45,0.00041587,30]
[406711167,1772113399354,-5418.917398,0.00041595,60]
[406711168,1772113399399,-559.16,0.0004161,120]
[406711169,1772113399445,-200.0,0.00041652,120]
[406711170,1772113399490,-559.16,0.0004171,120]
[406711171,1772113399538,-200.0,0.00041722,120]
[406711172,1772113399585,-200.0,0.00041744,120]
[406711173,1772113399630,-5000.0,0.00041752,30]
[406711174,1772113399674,-152.4338169,0.00041765,60]
[406711175,1772113399718,-843.0,0.00041774,120]
[406711176,1772113399765,-1580.44804,0.000418,60]
[406711177,1772113399811,-127470.311191,0.000418,30]
[406711178,1772113399857,-1000.0,0.000418,30]
[406711179,1772113399905,-559.16,0.0004181,120]
[406711180,1772113399954,-2406.47353564,0.00041895,120]
[406711181,1772113400006,-1213.445,0.000419,60]
[406711182,1772113400054,-1213.44,0.000419,60]
[406711183,1772113400104,-1209.555,0.000419,60]
[406711184,1772113400149,-1209.55,0.000419,60]
[406711185,1772113400201,-1304.855,0.000419,120]
[406711186,1772113400248,-1304.85,0.000419,120]
[406711187,1772113400295,-1631.45,0.000419,120]
[406711188,1772113400356,-1213.445,0.000419,30]
[406711189,1772113400419,-1213.44,0.000419,30]
[406711190,1772113400484,-1000.0,0.000419,120]
[406711191,1772113400549,-559.16462176,0.0004191,120]
[406711192,1772113400612,-154.71,0.00041931,120]
[406711193,1772113400677,-200.0,0.00041932,120]
[406711194,1772113400738,-151.27309036,0.00041962,60]
[406711195,1772113400795,-200.0,0.00041983,120]
[406711196,1772113400850,-200.0,0.00041983,120]
[406711197,1772113400913,-200.0,0.00041983,120]
[406711198,1772113400971,-200.0,0.00041983,120]
[406711199,1772113401029,-200.0,0.00041983,120]
[406711200,1772113401090,-200.0,0.00041983,120]
[406711201,1772113401157,-1763.0,0.00042,30]
[406711202,1772113401223,-168.0,0.00042,30]
[406711203,1772113401281,-1000.0,0.00042,120]
[406711204,1772113401337,-1000.0,0.00042,120]
[406711205,1772113401391,-1000.0,0.00042,120]
[406711206,1772113401445,-1000.0,0.00042,120]
[406711207,1772113401498,-300.0,0.00042,120]
[406711208,1772113401552,-3110.25212033,0.00042,120]
[406711209,1772113401607,-2000.0,0.00042,120]
[406711210,1772113401664,-2290.04905537,0.00042,120]
[406711211,1772113401720,-4598.466,0.00042,79]
[406711212,1772113401779,-4446.18,0.00042,30]
[406711213,1772113401835,-7013.63,0.00042,30]
[406711214,1772113401889,-2414.31,0.00042,120]
[406711215,1772113401943,-3038.76,0.00042,120]
[406711216,1772113401996,-3781.49151913,0.00042,30]
[406711217,1772113402049,-198.45,0.00042,30]
[406711218,1772113402101,-6397.87,0.00042,30]
[406711219,1772113402154,-7611.26,0.00042,30]
[406711220,1772113402210,-5484.62,0.00042,30]
[406711221,1772113402267,-19203.89,0.00042,30]
[406711222,1772113402325,-154.71,0.00042031,120]
[406711223,1772113402383,-843.0,0.00042048,120]
[406711224,1772113402428,-150.0,0.00042056,120]
[406711225,1772113402471,-200.0,0.00042063,120]
[406711226,1772113402516,-1000.0,0.000421,30]
[406711227,1772113402563,-154.71,0.00042131,120]
[406711228,1772113402606,-500.0,0.00042171,30]
[406711229,1772113402650,-154.71,0.00042231,120]
[406711230,1772113402692,-511.2617,0.00042237,30]
[406711231,1772113402735,-11200.57944096,0.00042255,120]
[406711232,1772113402779,-783.03,0.00042298,120]
[406711233,1772113402821,-528.87,0.000423,90]
[406711234,1772113403243,-843.0,0.00042322,120]
[406711235,1772113403288,-154.71,0.00042331,120]
[406711236,1772113403330,-5000.0,0.00042385,30]
[406711237,1772113403373,-3421.51728578,0.000424,120]
[406711238,1772113403412,-1000.0,0.000424,30]
[406711239,1772113403454,-200.0,0.0004241,120]
[406711240,1772113403496,-154.71,0.00042431,120]
[406711241,1772113403537,-1012645.0576,0.0004244,30]
[406711242,1772113403578,-500.0,0.00042458,30]
[406711243,1772113403620,-14299.51,0.00042465,120]
[406711244,1772113403661,-6643.92840892,0.000425,120]
[406711245,1772113403702,-2535.02,0.000425,120]
[406711246,1772113403743,-879.45874575,0.000425,120]
[406711247,1772113403783,-3190.7,0.000425,120]
[406711248,1772113403824,-10000.0,0.000425,120]
[406711249,1772113403863,-200.0,0.00042514,120]
[406711250,1772113403903,-200.0,0.00042526,120]
[406711251,1772113403945,-154.71,0.00042531,120]
[406711252,1772113403985,-820.03856544,0.00042559,120]
[406711253,1772113404025,-3699.89,0.0004258,90]
[406711254,1772113404067,-843.0,0.00042596,120]
[406711255,1772113404110,-500.0,0.00042598,30]
[406711256,1772113404162,-154.71,0.00042631,120]
[406711257,1772113404213,-490.61,0.00042672,120]
[406711258,1772113404253,-490.61,0.00042672,120]
[406711259,1772113404293,-490.61,0.00042672,120]
[406711260,1772113404333,-490.61,0.00042672,120]
[406711261,1772113404374,-490.61,0.00042672,120]
[406711262,1772113404414,-490.61,0.00042672,120]
[406711263,1772113404454,-490.61,0.00042672,120]
[406711264,1772113404496,-490.61,0.00042672,120]
[406711265,1772113404539,-490.61,0.00042672,120]
[406711266,1772113404580,-490.61,0.00042672,120]
[406711267,1772113404620,-490.61,0.00042672,120]
[406711268,1772113404663,-490.61,0.00042672,120]
[406711269,1772113404704,-490.61,0.00042672,120]
[406711270,1772113404746,-490.63,0.00042672,120]
[406711271,1772113404791,-200.0,0.00042684,120]
[406711272,1772113404838,-1000.0,0.000427,30]
[406711273,1772113404883,-27371.87212653,0.000427,120]
[406711274,1772113404926,-200.0,0.000427,52]
[406711275,1772113404971,-154.71,0.00042731,120]
[406711276,1772113405020,-151.27309036,0.00042756,60]
[406711277,1772113405062,-547.5868386,0.00042786,30]
[406711278,1772113405106,-154.71,0.00042831,120]
[406711279,1772113405151,-843.0,0.0004287,120]
[406711280,1772113405192,-200.0,0.000429,120]
[406711281,1772113405235,-341.77956,0.000429,120]
[406711282,1772113405277,-618.6121,0.000429,120]
[406711283,1772113405319,-2000.0,0.000429,120]
[406711284,1772113405361,-154.71,0.00042931,120]
[406711285,1772113405402,-528.87,0.00043,120]
[406711286,1772113405442,-1721.127,0.00043,90]
[406711287,1772113405482,-1721.127,0.00043,90]
[406711288,1772113405525,-1721.12,0.00043,90]
[406711289,1772113405568,-506.78,0.00043,120]
[406711290,1772113405612,-300.0,0.00043,120]
[406711291,1772113405654,-1500.0,0.00043,40]
[406711292,1772113405703,-10566.48702336,0.00043,120]
[406711293,1772113405746,-1000.0,0.00043,120]
[406711294,1772113405788,-1000.0,0.00043,30]
[406711295,1772113405829,-4386.65606091,0.00043,120]
[406711296,1772113405870,-2661.77,0.00043,120]
[406711297,1772113405910,-3350.23,0.00043,120]
[406711298,1772113405952,-154.71,0.00043031,120]
[406711299,1772113405993,-151.27309036,0.00043118,60]
[406711300,1772113406034,-154.71,0.00043131,120]
[406711301,1772113406075,-843.0,0.00043144,120]
[406711302,1772113406115,-500.0,0.00043144,30]
[406711303,1772113406156,-200.0,0.00043145,120]
[406711304,1772113406195,-3733.44507968,0.0004321,120]
[406711305,1772113406236,-154.71,0.00043231,120]
[406711306,1772113406274,-500.0,0.00043288,60]
[406711307,1772113406314,-500.0,0.00043288,60]
[406711308,1772113406352,-500.0,0.00043288,60]
[406711309,1772113406388,-500.0,0.00043288,60]
[406711310,1772113406426,-500.0,0.00043288,60]
[406711311,1772113406463,-500.0,0.00043288,60]
[406711312,1772113406500,-500.0,0.00043288,60]
[406711313,1772113406539,-500.0,0.00043288,60]
[406711314,1772113406578,-500.0,0.00043288,60]
[406711315,1772113406616,-500.0,0.00043288,60]
[406711316,1772113406654,-200.0,0.00043298,120]
[406711317,1772113406697,-1000.0,0.000433,30]
[406711318,1772113406737,-154.71,0.00043331,120]
[406711319,1772113406777,-200.0,0.00043336,120]
[406711320,1772113406819,-500.0,0.00043395,30]
[406711321,1772113406859,-843.0,0.00043418,120]
[406711322,1772113406903,-154.71,0.00043431,120]
[406711323,1772113406944,-200.0,0.00043433,120]
[406711324,1772113406986,-781.83,0.0004346,30]
[406711325,1772113407027,-69156.22957646,0.000435,120]
[406711326,1772113407069,-2794.86,0.000435,120]
[406711327,1772113407264,-10000.0,0.000435,120]
[406711328,1772113407312,-3517.75,0.000435,120]
[406711329,1772113407358,-154.71,0.00043531,120]
[406711330,1772113407401,-151.27309036,0.00043556,60]
[406711331,1772113407447,-1000.0,0.000436,30]
[406711332,1772113407494,-154.71,0.00043631,120]
[406711333,1772113407542,-843.0,0.00043692,120]
[406711334,1772113407591,-154.71,0.00043731,120]
[406711335,1772113407637,-919.60195144,0.000438,30]
[406711336,1772113407684,-17130.86782618,0.000438,120]
[406711337,1772113407736,-154.71,0.00043831,120]
[406711338,1772113407779,-500.0,0.00043836,120]
[406711339,1772113407822,-500.0,0.00043891,120]
[406711340,1772113407864,-1000.0,0.000439,30]
[406711341,1772113407908,-1000.0,0.000439,120]
[406711342,1772113407957,-154.71,0.00043931,120]
[406711343,1772113408002,-500.0,0.00043946,120]
[406711344,1772113408048,-843.0,0.00043966,120]
[406711345,1772113408094,-611.18,0.00043979,30]
[406711346,1772113408137,-300.0,0.00044,120]
[406711347,1772113408181,-2000.0,0.00044,120]
[406711348,1772113408223,-4446.18,0.00044,30]
[406711349,1772113408266,-7013.63,0.00044,30]
[406711350,1772113408315,-4575.45204972,0.00044,120]
[406711351,1772113408362,-2934.61,0.00044,120]
[406711352,1772113408407,-3693.63,0.00044,120]
[406711353,1772113408451,-168.27156811,0.00044,120]
[406711354,1772113408496,-154.71,0.00044031,120]
[406711355,1772113408540,-490.61,0.00044072,120]
[406711356,1772113408583,-490.61,0.00044072,120]
[406711357,1772113408626,-490.61,0.00044072,120]
[406711358,1772113408670,-490.61,0.00044072,120]
[406711359,1772113408714,-490.61,0.00044072,120]
[406711360,1772113408756,-490.61,0.00044072,120]
[406711361,1772113408798,-490.61,0.00044072,120]
[406711362,1772113408839,-490.61,0.00044072,120]
[406711363,1772113408879,-490.61,0.00044072,120]
[406711364,1772113408919,-490.61,0.00044072,120]
[406711365,1772113408960,-490.61,0.00044072,120]
[406711366,1772113409000,-490.61,0.00044072,120]
[406711367,1772113409041,-490.61,0.00044072,120]
[406711368,1772113409083,-490.61,0.00044072,120]
[406711369,1772113409126,-500.0,0.00044085,30]
[406711370,1772113409167,-7611.26,0.000441,30]
[406711371,1772113409208,-6397.87,0.000441,30]
[406711372,1772113409250,-5484.62,0.000441,30]
[406711373,1772113409294,-19203.89,0.000441,30]
[406711374,1772113409338,-154.71,0.00044131,120]
[406711375,1772113409378,-5552.212,0.00044183,30]
[406711376,1772113409420,-1000.0,0.000442,30]
[406711377,1772113409464,-154.71,0.00044231,120]
[406711378,1772113409509,-200.0,0.00044234,120]
[406711379,1772113409553,-843.0,0.0004424,120]
[406711380,1772113409601,-154.71,0.00044331,120]
[406711381,1772113409649,-200.0,0.00044392,120]
[406711382,1772113409702,-286.45,0.000444,120]
[406711383,1772113409748,-1899.3,0.000444,90]
[406711384,1772113409794,-1893.21,0.000444,120]
[406711385,1772113409840,-1407.72,0.000444,120]
[406711386,1772113409887,-1407.72,0.000444,120]
[406711387,1772113409934,-1407.71,0.000444,120]
[406711388,1772113409981,-1276.79,0.000444,120]
[406711389,1772113410028,-625.4841,0.000444,90]
[406711390,1772113410076,-154.71,0.00044431,120]
[406711391,1772113410124,-1012645.0576,0.0004444,30]
[406711392,1772113410173,-500.0,0.00044444,30]
[406711393,1772113410229,-1000.0,0.000445,30]
[406711394,1772113410277,-3081.34,0.000445,120]
[406711395,1772113410322,-3878.32,0.000445,120]
[406711396,1772113410365,-843.0,0.00044514,120]
[406711397,1772113410413,-154.71,0.00044531,120]
[406711398,1772113410460,-859.93233348,0.00044559,120]
[406711399,1772113410504,-151.27309036,0.00044609,60]
[406711400,1772113410548,-638.7785651,0.0004463,30]
[406711401,1772113410594,-154.71,0.00044631,120]
[406711402,1772113410639,-475.0,0.00044716,120]
[406711403,1772113410684,-154.71,0.00044731,120]
[406711404,1772113410731,-200.0,0.00044755,120]
[406711405,1772113410776,-843.0,0.00044788,120]
[406711406,1772113410820,-1000.0,0.000448,30]
[406711407,1772113410866,-1000.0,0.00044808,120]
[406711408,1772113410909,-1000.0,0.00044808,120]
[406711409,1772113410953,-154.71,0.00044831,120]
[406711410,1772113410993,-20531.06728691,0.00044887,90]
[406711411,1772113411035,-1341.01786585,0.000449,120]
[406711412,1772113411080,-251.29994,0.000449,120]
[406711413,1772113411124,-2000.0,0.000449,120]
[406711414,1772113411172,-200.0,0.00044916,120]
[406711415,1772113411219,-154.71,0.00044931,120]
[406711416,1772113411272,-520.42952373,0.00044958,30]
[406711417,1772113411317,-8461.876374,0.0004498,120]
[406711418,1772113411363,-510.75529555,0.00045,120]
[406711419,1772113411402,-2005.14264714,0.00045,120]
[406711420,1772113411442,-699.90147973,0.00045,30]
[406711421,1772113411483,-471.81221925,0.00045,120]
[406711422,1772113411525,-1163.41265188,0.00045,120]
[406711423,1772113411567,-182.93569973,0.00045,120]
[406711424,1772113411607,-392.0,0.00045,120]
[406711425,1772113411646,-4119.14573438,0.00045,30]
[406711426,1772113411688,-4103.07413936,0.00045,120]
[406711427,1772113411731,-168.0,0.00045,30]
[406711428,1772113411774,-1369.0,0.00045,60]
[406711429,1772113411817,-1000.0,0.00045,30]
[406711430,1772113411857,-300.0,0.00045,120]
[406711431,1772113411896,-500.0,0.00045,120]
[406711432,1772113412163,-1000.0,0.00045,120]
[406711433,1772113412210,-978.0,0.00045,120]
[406711434,1772113412255,-1147.74943504,0.00045,120]
[406711435,1772113412302,-120000.0,0.00045,120]
[406711436,1772113412349,-1000.0,0.00045,30]
[406711437,1772113412397,-1217.90939289,0.00045,120]
[406711438,1772113412441,-370.709786,0.00045,120]
[406711439,1772113412490,-318.0,0.00045,120]
[406711440,1772113412539,-5311.8636554,0.00045,60]
[406711441,1772113412587,-50681.02079366,0.00045,120]
[406711442,1772113412634,-1000.0,0.00045,120]
[406711443,1772113412677,-948.53884566,0.00045,120]
[406711444,1772113412720,-68031.43959092,0.00045,30]
[406711445,1772113412763,-6210.90442314,0.00045,120]
[406711446,1772113412807,-10000.0,0.00045,65]
[406711447,1772113412854,-3235.4,0.00045,120]
[406711448,1772113412900,-20000.0,0.00045,120]
[406711449,1772113412943,-6000.0,0.00045,30]
[406711450,1772113412983,-10000.0,0.00045,120]
[406711451,1772113413022,-4072.23,0.00045,120]
[406711452,1772113413061,-4500.0,0.00045,30]
[406711453,1772113413102,-154.71,0.00045031,120]
[406711454,1772113413144,-843.0,0.00045062,120]
[406711455,1772113413188,-200.0,0.00045078,120]
[406711456,1772113413230,-1000.0,0.000451,30]
[406711457,1772113413275,-200.0,0.00045128,120]
[406711458,1772113413320,-154.71,0.00045131,120]
[406711459,1772113413362,-506.64,0.00045205,120]
[406711460,1772113413406,-14299.51,0.00045205,120]
[406711461,1772113413448,-154.71,0.00045231,120]
[406711462,1772113413492,-157.66,0.00045302,30]
[406711463,1772113413539,-154.71,0.00045331,120]
[406711464,1772113413584,-843.0,0.00045336,120]
[406711465,1772113413628,-233.55,0.0004534,120]
[406711466,1772113413671,-200.0,0.0004535,120]
[406711467,1772113413714,-200.0,0.0004535,120]
[406711468,1772113413758,-200.0,0.0004535,120]
[406711469,1772113413801,-2205.88533075,0.000454,120]
[406711470,1772113413844,-1000.0,0.000454,30]
[406711471,1772113413890,-154.71,0.00045431,120]
[406711472,1772113413933,-200.0,0.00045443,120]
[406711473,1772113413974,-1000.0,0.000455,120]
[406711474,1772113414015,-1000.0,0.000455,120]
[406711475,1772113414058,-3397.17,0.000455,120]
[406711476,1772113414100,-4275.84,0.000455,120]
[406711477,1772113414147,-154.71,0.00045531,120]
[406711478,1772113414190,-200.0,0.00045541,120]
[406711479,1772113414233,-1443.16,0.000456,90]
[406711480,1772113414277,-1407.72,0.000456,120]
[406711481,1772113414321,-1407.72,0.000456,120]
[406711482,1772113414364,-1407.71,0.000456,120]
[406711483,1772113414411,-254.0,0.000456,60]
[406711484,1772113414452,-843.0,0.0004561,120]
[406711485,1772113414496,-154.71,0.00045631,120]
[406711486,1772113414541,-681.6656694,0.00045661,60]
[406711487,1772113414588,-1000.0,0.000457,30]
[406711488,1772113414636,-154.71,0.00045731,120]
[406711489,1772113414684,-154.71,0.00045831,120]
[406711490,1772113414730,-843.0,0.00045884,120]
[406711491,1772113414775,-1500.0,0.000459,120]
[406711492,1772113414821,-154.71,0.00045931,120]
[406711493,1772113414868,-2742.82548434,0.00046,30]
[406711494,1772113414913,-1000.0,0.00046,120]
[406711495,1772113414961,-300.0,0.00046,120]
[406711496,1772113415006,-2000.0,0.00046,120]
[406711497,1772113415052,-1000.0,0.00046,30]
[406711498,1772113415098,-3567.03,0.00046,120]
[406711499,1772113415148,-20000.0,0.00046,120]
[406711500,1772113415194,-4489.64,0.00046,120]
[406711501,1772113415247,-154.71,0.00046031,120]
[406711502,1772113415295,-154.71,0.00046131,120]
[406711503,1772113415341,-5000.0,0.00046155,30]
[406711504,1772113415386,-5000.0,0.00046155,30]
[406711505,1772113415431,-843.0,0.00046158,120]
[406711506,1772113415480,-154.71,0.00046231,120]
[406711507,1772113415529,-1000.0,0.000463,30]
[406711508,1772113415575,-7611.26,0.00046305,30]
[406711509,1772113415621,-6397.87,0.00046305,30]
[406711510,1772113415668,-5484.62,0.00046305,30]
[406711511,1772113415713,-19203.89,0.00046305,30]
[406711512,1772113415760,-154.71,0.00046331,120]
[406711513,1772113415804,-200.0,0.00046357,67]
[406711514,1772113415848,-814.91,0.00046371,30]
[406711515,1772113415891,-151.27309036,0.00046392,60]
[406711516,1772113415940,-200.0,0.00046409,120]
[406711517,1772113415989,-154.71,0.00046431,120]
[406711518,1772113416038,-843.0,0.00046431,120]
[406711519,1772113416086,-159707.40943553,0.0004644,30]
[406711520,1772113419460,-300.0,0.00012078,2]
[406711522,1772113428176,-200.0,0.00033676,36]
[406711523,1772113428225,-186.26,0.00035231,30]
[406711524,1772113428273,-372.52,0.00037381,30]
[406711525,1772113428318,-200.0,0.000379,43]
[406711526,1772113428590,-1000.0,0.00038,30]
[406711527,1772113428639,-558.78,0.00039531,30]
[406711528,1772113428685,-2500.0,0.0004,120]
[406711529,1772113428728,-2625.0,0.000405,120]
[406711530,1772113428797,-2756.25,0.00041,120]
[406711531,1772113428843,-2894.06,0.000415,120]
[406711532,1772113428888,-745.04,0.00041682,30]
[406711533,1772113428930,-3038.76,0.00042,120]
[406711534,1772113428972,-200.0,0.00042123,53]
[406711535,1772113429014,-3190.7,0.000425,120]
[406711536,1772113429057,-3350.23,0.00043,120]
[406711537,1772113429102,-3517.75,0.000435,120]
[406711538,1772113429145,-931.3,0.00043832,30]
[406711539,1772113429187,-3693.63,0.00044,120]
[406711540,1772113429229,-3878.32,0.000445,120]
[406711541,1772113429272,-3160.4018,0.00044726,120]
[406711542,1772113429312,-3160.4018,0.00044726,120]
[406711543,1772113429353,-3160.4018,0.00044726,120]
[406711544,1772113429396,-3160.4018,0.00044726,120]
[406711545,1772113429435,-3160.4018,0.00044726,120]
[406711546,1772113429474,-3160.4018,0.00044726,120]
[406711547,1772113429517,-4072.23,0.00045,120]
[406711548,1772113429560,-2495019.6914,0.00045444,30]
[406711549,1772113429603,-4275.84,0.000455,120]
[406711550,1772113429646,-1117.56,0.00045982,30]
[406711551,1772113429690,-4489.64,0.00046,120]
[406711552,1772113429734,-852937.64816447,0.0004644,30]
[406711553,1772113429778,-445.0,0.0004644,60]
[406711554,1772113429820,-4714.12,0.000465,120]
[406711555,1772113429863,-154.71,0.00046531,120]
[406711556,1772113429908,-899.82610153,0.00046559,120]
[406711557,1772113429954,-1000.0,0.000466,30]
[406711558,1772113429998,-5000.0,0.0004662,30]
[406711559,1772113430041,-154.71,0.00046631,120]
[406711560,1772113430080,-151.27309036,0.00046646,60]
[406711561,1772113430120,-843.0,0.00046705,120]
[406711562,1772113430161,-154.71,0.00046731,120]
[406711563,1772113430201,-200.0,0.00046782,120]
[406711564,1772113430240,-2288.99,0.000468,110]
[406711565,1772113430279,-154.71,0.00046831,120]
[406711566,1772113430317,-234.89449643,0.00046887,30]
[406711567,1772113430355,-452.21,0.000469,120]
[406711568,1772113430392,-450.76,0.000469,120]
[406711569,1772113430430,-1005.51,0.000469,120]
[406711570,1772113430467,-303.99,0.000469,90]
[406711571,1772113430505,-1000.0,0.000469,30]
[406711572,1772113430544,-2000.0,0.000469,120]
[406711573,1772113430585,-200.0,0.00046908,120]
[406711574,1772113430625,-154.71,0.00046931,120]
[406711575,1772113430663,-843.0,0.00046979,120]
[406711576,1772113430707,-300.0,0.00047,120]